{"text_format":"1","workbook":"xlsx","n_sheets":1,"sheets":["גיליון1"],"not_rendered":{"charts":0,"images":13,"macros":1,"external_links":0,"defined_names":0,"comments":0,"pivot_tables":0},"unopened":[],"bounds":{"document_bytes":16777216,"sheet_cells":100000,"rows_first":2000,"rows_last":500,"rows_between":2000,"halvings":0,"cell_chars":16384,"cell_head_chars":4096},"cells_cut":0,"cells_raw":0,"read":"whole","date_system":"1900"}

{"sheet":"גיליון1","index":0,"n_rows":78,"n_cols":57,"rows_kept":78,"cut":false,"hidden":false,"merged":[[2,2,2,19],[2,20,2,21],[2,27,2,30],[2,33,2,34]]}
[null,null,"מסכת בכורות"]
[null,null,null,null,null,null,null,null,null,null,null,null,null,null,null,null,null,null,null,null,null,null,60,null,null,"דפים"]
[null,null,"סה\"כ דפים שנלמדו:",null,null,null,null,null,null,null,null,null,null,null,null,null,null,null,null,null,{"$f":"+(O6+AE5+#REF!+AJ5+AR5+AZ5)/2","v":{"$error":"#VALUE!"}},null,null,null,null,null,null,"סה\"כ חזרות:",null,null,null,null,null,{"$f":"+(#REF!+#REF!+#REF!+AK5+AS5+#REF!)/2","v":{"$error":"#REF!"}}]
[]
[null,null,null,"התחלת ","זהוי = זהה","צבע",null,"חזרה הבאה","הוכנס",null,null,null,null,null,null,null,null,null,null,null,null,null,null,null,"התחלת ","התחלת ","זהוי = זהה","צבע",null,"חזרה הבאה","הוכנס",null,null,null,null,{"$f":"SUM(AN6:AN29)","v":0},{"$f":"SUM(AO6:AO29)","v":0},null,null,null,null,null,null,{"$f":"SUM(AV6:AV29)","v":0},{"$f":"SUM(AW6:AW29)","v":0},null,null,null,null,null,null,{"$f":"SUM(BD6:BD29)","v":0}]
[null,null,null,"סיכום","שליפה=של","מחברת",null,null,"בקל לזכור",null,null,null,null,null,{"$f":"SUM(H7:H29)","v":0},null,null,null,null,null,null,null,null,null,null,"סיכום","שליפה=של","מחברת",null,null,"בקל לזכור",null,null,null,"לג:",null,null,null,null,{"$f":"+IF(COUNTA(AJ6)>0,1,0)","v":0},null,null,"מג:",null,null,null,null,{"$f":"+IF(COUNTA(AR6)>0,1,0)","v":0},{"$f":"+IF(COUNTA(AS6:AU6)>0,1,0)","v":0},null,"נד.",null,null,null,null,{"$f":"+IF(COUNTA(AZ6)>0,1,0)","v":0},{"$f":"+IF(COUNTA(BA6:BC6)>0,1,0)","v":0}]
[null,null,"ב.","bb",null,null,null,null,null,null,null,null,null,null,{"$f":"+IF(COUNTA(F4)+COUNTA(F7)>1,1,0)","v":0},{"$f":"+IF(COUNTA(G4:I4)+COUNTA(G7:I7)>1,1,0)","v":0},null,null,null,null,null,null,null,28,"לג:",null,null,null,null,null,null,{"$f":"+IF(COUNTA(#REF!)+COUNTA(AB7)>1,1,0)","v":0},null,null,"לד.",null,null,null,null,0,null,null,"מד.",null,null,null,null,0,0,null,"נד:",null,null,null,null,0,0]
[null,null,null,null,null,null,null,null,null,null,null,null,null,{"$f":"+IF(COUNTA(F8)>0,1,0)","v":0},{"$f":"+IF(COUNTA(G8:I8)>0,1,0)","v":0},"xlsm",null,null,null,null,null,null,null,"לד.",null,null,null,null,null,null,{"$f":"+IF(COUNTA(AA8)>0,1,0)","v":0},{"$f":"+IF(COUNTA(AB8:AD8)>0,1,0)","v":0},null,"לד:",null,null,null,null,0,{"$f":"+IF(COUNTA(AJ8:AL8)>0,1,0)","v":0},null,"מד:",null,null,null,null,0,0,null,"נה.",null,null,null,null,0,0]
[null,null,"ג.",null,null,null,null,null,null,null,null,null,null,0,0,null,null,null,null,null,null,null,null,"לד:",null,null,null,null,null,null,0,0,null,"לה.",null,null,null,null,0,0,null,"מה.",null,null,null,null,0,0,null,"נה:",null,null,null,null,0,0]
[null,null,"ג:","y",null,null,null,null,null,null,null,null,null,0,0,null,null,null,null,null,null,null,null,"לה.",null,null,null,null,null,null,0,0,null,"לה:",null,null,null,null,0,0,null,"מה:",null,null,null,null,0,0,null,"נו.",null,null,null,null,0,0]
[null,null,"ד.",null,null,null,null,null,null,null,null,null,null,0,0,null,null,null,null,null,null,null,null,"לה:",null,null,null,null,null,null,0,0,null,"לו.",null,null,null,null,0,0,null,"מו.",null,null,null,null,0,0,null,"נו:",null,null,null,null,0,0]
[null,null,"ד:",null,null,null,null,null,null,null,null,null,null,0,0,null,null,null,null,null,null,null,null,"לו.",null,null,null,null,null,null,0,0,null,"לו:",null,null,null,null,0,0,null,"פרק ח' - יש בכור",null,null,null,null,0,0,null,"נז.",null,null,null,null,0,0]
[null,null,"ה.",null,null,null,null,null,null,null,null,null,null,0,0,null,null,null,null,null,null,null,null,"לו:",null,null,null,null,null,null,0,0,null,"לז.",null,null,null,null,0,0,null,"מו.",null,null,null,null,{"$f":"+IF(COUNTA(AQ11)+COUNTA(AQ13)>1,1,0)","v":0},{"$f":"+IF(COUNTA(AR11:AT11)+COUNTA(AR13:AT13)>1,1,0)","v":0},null,"נז:",null,null,null,null,0,0]
[null,null,"ה:",null,null,null,null,null,null,null,null,null,null,0,0,null,null,null,null,null,null,null,null,"לז.",null,null,null,null,null,null,0,0,null,"פרק ו' - על אלו מומין",null,null,null,null,0,0,null,"מו:",null,null,null,null,0,0,null,"נח.",null,null,null,null,0,0]
[null,null,"ו.",null,null,null,null,null,null,null,null,null,null,0,0,null,null,null,null,null,null,null,null,"                                              פרק ו' - על אלו מומין",null,null,null,null,null,null,0,0,null,"לז.",null,null,null,null,{"$f":"+IF(COUNTA(AI13)+COUNTA(AI15)>1,1,0)","v":0},{"$f":"+IF(COUNTA(AJ13:AL13)+COUNTA(AJ15:AL15)>1,1,0)","v":0},null,"מז.",null,null,null,null,0,0,null,"נח:",null,null,null,null,0,0]
[null,null,"ו:",null,null,null,null,null,null,null,null,null,null,0,0,null,null,null,null,null,null,null,null,"לז.",null,null,null,null,null,null,{"$f":"+IF(COUNTA(#REF!)+COUNTA(AA16)>1,1,0)","v":0},{"$f":"+IF(COUNTA(#REF!)+COUNTA(AB16:AD16)>1,1,0)","v":0},null,"לז:",null,null,null,null,{"$f":"+IF(COUNTA(AI16)>0,1,0)","v":0},{"$f":"+IF(COUNTA(AJ16:AL16)>0,1,0)","v":0},null,"מז:",null,null,null,null,0,0,null,"נט.",null,null,null,null,0,0]
[null,null,"ז.",null,null,null,null,null,null,null,null,null,null,0,0,null,null,null,null,null,null,22,null,"לז:",null,null,null,null,null,null,{"$f":"+IF(COUNTA(AA17)>0,1,0)","v":0},{"$f":"+IF(COUNTA(AB17:AD17)>0,1,0)","v":0},null,"לח.",null,null,null,null,0,0,null,"מח.",null,null,null,null,0,0,null,"נט:",null,null,null,null,0,0]
[null,null,"ז:",null,null,null,null,null,null,null,null,null,null,0,0,null,null,null,null,null,null,null,null,"לח.",null,null,null,null,null,null,0,0,null,"לח:",null,null,null,null,0,0,null,"מח:",null,null,null,null,0,0,null,"ס.",null,null,null,null,0,0]
[null,null,"ח.",null,null,null,null,null,null,null,null,null,null,0,0,null,null,null,null,null,null,null,null,"לח:","17.1.24",null,null,null,null,null,0,0,null,"לט.",null,null,null,null,0,0,null,"מט.",null,null,null,null,0,0,null,"ס:",null,null,null,null,0,0]
[1,null,"ח:",null,null,null,null,null,null,null,null,null,null,0,0,null,null,null,null,null,null,null,null,"לט.","22.1.\"","60% זהוי","צהו",null,null,null,1,0,null,"לט:",null,null,null,null,0,0,null,"מט:",null,null,null,null,0,0,null,"סא.",null,null,null,null,{"$f":"+IF(COUNTA(AY20)>0,2,0)","v":0},{"$f":"+IF(COUNTA(AZ20:BB20)>0,2,0)","v":0}]
[null,null,"ט.",null,null,null,null,null,null,null,null,null,null,{"$f":"+IF(COUNTA(F18)+COUNTA(F21)>1,1,0)","v":0},{"$f":"+IF(COUNTA(G18:I18)+COUNTA(G21:I21)>1,1,0)","v":0},null,null,null,null,null,null,null,null,"לט:",null,null,null,null,null,null,0,0,null,"מ.",null,null,null,null,0,0,null,"נ.",null,null,null,null,0,0]
[null,null,"ט:",null,null,null,null,null,null,null,null,null,null,{"$f":"+IF(COUNTA(F22)>0,1,0)","v":0},{"$f":"+IF(COUNTA(G22:I22)>0,1,0)","v":0},null,null,null,null,null,null,null,null,"מ.",25.1,null,"זהוי","צהוב",null,null,1,1,null,"מ:",null,null,null,null,0,0,null,"נ:",null,null,null,null,0,0]
[null,null,"י.",null,null,null,null,null,null,null,null,null,null,0,0,null,null,null,null,null,null,null,null,"מ:",null,null,null,null,null,null,0,0,null,"מא.",null,null,null,null,0,0,null,"נא.",null,null,null,null,0,0]
[null,null,"י:",null,null,null,null,null,null,null,null,null,null,0,0,null,null,null,null,null,null,null,null,"מא.",null,null,null,null,null,null,0,0,null,"מא:",null,null,null,null,0,0,null,"נא:",null,null,null,null,0,0]
[null,null,"יא.",null,null,null,null,null,null,null,null,null,null,0,0,null,null,null,null,null,null,null,null,"מא:",null,null,null,null,{"$f":"+IF(COUNTA(Y25)>0,1,0)","v":0},{"$f":"+IF(COUNTA(Z25:AB25)>0,1,0)","v":0},null,null,null,"מב.",null,null,null,null,0,0,null,"נב.",null,null,null,null,0,0]
[null,null,"יא:",null,null,null,null,null,null,null,null,null,null,0,0,null,null,null,null,null,null,null,null,"מב.",null,null,null,null,{"$f":"+IF(COUNTA(Y26)>0,1,0)","v":0},{"$f":"+IF(COUNTA(Z26:AB26)>0,1,0)","v":0},null,null,null,"מב:",null,null,null,null,0,0,null,"נב:",null,null,null,null,0,0]
[null,null,"יב.",null,null,null,null,null,null,null,null,null,null,0,0,null,null,null,null,null,null,null,null,"מב:",null,null,null,null,0,0,null,null,null,"מג.",null,null,null,null,0,0,null,"פרק ט' - מעשר בהמה",null,null,null,null,0,0]
[null,null,"יב:",null,null,null,null,null,null,null,null,null,null,0,0,null,null,null,null,null,null,null,null,"מג.",null,null,null,null,0,0,null,null,null,"פרק ז' - מומין אלו",null,null,null,null,0,0,null,"נג.",null,null,null,null,0,0]
[null,null,"יג.",null,null,null,null,null,null,null,null,null,null,0,0,null,null,null,null,null,null,null,null,"פרק ז' - מומין אלו",null,null,null,null,{"$f":"+IF(COUNTA(Y27)+COUNTA(Y29)>1,1,0)","v":0},{"$f":"+IF(COUNTA(Z27:AB27)+COUNTA(Z29:AB29)>1,1,0)","v":0},null,null,null,"מג.",null,null,null,null,{"$f":"+IF(COUNTA(AI27)+COUNTA(AI29)>1,1,0)","v":0},{"$f":"+IF(COUNTA(AJ27:AL27)+COUNTA(AJ29:AL29)>1,1,0)","v":0},null,"נג:",null,null,null,null,0,0]
[null,null,null,null,null,null,null,null,null,null,null,null,null,0,0,null,null,null,null,null,null,null,null,"מג."]
[null,null,"פרק ב - הלקח ","סיכום","דגדגדג",null,null,null,null,null,null,null,null,0,0]
[null,null,"יג.",null,null,null,null,null,null,null,null,null,null,0,0]
[null,null,"יג:",null,null,null,null,null,null,null,null,null,null,0,0]
[null,null,"יד.",null,null,null,null,null,null,null,null,null,null,0,0]
[null,null,"יד:",null,null,null,null,null,null,null,null,null,null,{"$f":"+IF(COUNTA(F32)+COUNTA(F35)>1,1,0)","v":0},{"$f":"+IF(COUNTA(G32:I32)+COUNTA(G35:I35)>1,1,0)","v":0}]
[null,null,"טו.",null,null,null,null,null,null,null,null,null,null,{"$f":"+IF(COUNTA(F36)>0,1,0)","v":0},{"$f":"+IF(COUNTA(G36:I36)>0,1,0)","v":0}]
[null,null,"טו:",null,null,null,null,null,null,null,null,null,null,0,0]
[null,null,"טז.",null,null,null,null,null,null,null,null,null,null,0,0]
[null,null,"טז:",null,null,null,null,null,null,null,null,null,null,0,0]
[null,null,"יז.",null,null,null,null,null,null,null,null,null,null,0,0]
[null,null,"יז:",null,null,null,null,null,null,null,null,null,null,0,0]
[null,null,"יח.",null,null,null,null,null,null,null,null,null,null,0,0]
[null,null,"יח:",null,null,null,null,null,null,null,null,null,null,0,0]
[null,null,"יט.",null,null,null,null,null,null,null,null,null,null,0,0]
[null,null,"יט:",null,null,null,null,null,null,null,null,null,1,0,0]
[null,null,"פרק ג' - הלוקח בהמה",null,null,null,null,null,null,null,null,null,null,0,0]
[null,null,"יט:",null,null,null,null,null,null,null,null,null,null,0,0]
[null,null,"כ.",null,null,null,null,null,null,null,null,null,null,0,0]
[null,null,"כ:",null,null,null,null,null,null,null,null,null,null,{"$f":"+IF(COUNTA(F46)+COUNTA(F49)>1,1,0)","v":0},{"$f":"+IF(COUNTA(G46:I46)+COUNTA(G49:I49)>1,1,0)","v":0}]
[null,null,"כא.",null,null,null,null,null,null,null,null,null,null,{"$f":"+IF(COUNTA(F50)>0,1,0)","v":0},{"$f":"+IF(COUNTA(G50:I50)>0,1,0)","v":0}]
[null,null,"כא:",null,null,null,null,null,null,null,null,null,null,{"$f":"+IF(COUNTA(F51)>0,1,0)","v":0},{"$f":"+IF(COUNTA(G51:I51)>0,1,0)","v":0}]
[null,null,"כב.",null,null,null,null,null,null,null,null,null,null,{"$f":"+IF(COUNTA(F52)>0,1,0)","v":0},{"$f":"+IF(COUNTA(G52:I52)>0,1,0)","v":0}]
[null,null,"כב:",null,null,null,null,null,null,null,null,null,null,{"$f":"+IF(COUNTA(F53)>0,1,0)","v":0},{"$f":"+IF(COUNTA(G53:I53)>0,1,0)","v":0}]
[null,null,"כג.","25.1.24",null,null,null,null,null,11,null,null,null,{"$f":"+IF(COUNTA(F54)>0,1,0)","v":0},{"$f":"+IF(COUNTA(G54:I54)>0,1,0)","v":0}]
[null,null,"כג:","25.1.24",null,null,null,null,null,null,null,null,null,null,{"$f":"+IF(COUNTA(F55)>0,1,0)","v":0},{"$f":"+IF(COUNTA(G55:I55)>0,1,0)","v":0}]
[null,null,"כד.",null,null,null,null,null,null,null,null,null,null,null,0,0]
[null,null,"כד:",null,null,null,null,null,null,null,null,null,null,null,0,0]
[null,null,"כה.",null,null,null,null,null,null,null,null,null,null,null,0,0]
[null,null,"כה:","5.11.23",null,null,null,null,null,4,null,null,null,null,0,0]
[null,null,"כו.",null,null,null,null,null,null,null,null,null,null,null,0,0]
[null,null,"כו:",null,null,null,null,null,null,null,null,null,null,null,0,0]
[null,null,"פרק ד' - עד כמה",null,null,null,null,null,null,null,null,null,null,null,0,0]
[null,null,"כו:"]
[null,null,"כז."]
[null,null,"כז:"]
[null,null,"כח."]
[null,null,"כח:"]
[null,null,"כט."]
[null,null,"כט:"]
[null,null,"ל."]
[null,null,"ל:"]
[null,null,"לא."]
[null,null,"פרק ה' - כל פסולי"]
[null,null,"לא."]
[null,null,"לא:"]
[null,null,"לב."]
[null,null,"לב:"]
[null,null,"לג."]